fUSD/lending_fUSD_20260610
["ID","MTS","AMOUNT","RATE_DAILY","PERIOD"]
[424641412,1781026245000,-150.0,0.0001497,2]
[424641413,1781026245000,-173.21291421,0.00014971,2]
[424641415,1781026245000,-150.0,0.00014985,2]
[424641414,1781026245000,-587.60148306,0.00014971,2]
[424641356,1781026245000,-150.0,0.00014846,2]
[424641401,1781026245000,-150.0,0.00014937,2]
[424641381,1781026245000,-6480.25803709,0.000149,2]
[424641400,1781026245000,-150.0,0.00014932,2]
[424641390,1781026245000,-150.0,0.00014906,2]
[424641383,1781026245000,-9720.84234887,0.000149,2]
[424641358,1781026245000,-173.21291421,0.0001485,2]
[424641359,1781026245000,-587.60148306,0.0001485,2]
[424641357,1781026245000,-150.0,0.0001485,2]
[424641364,1781026245000,-150.0,0.00014871,2]
[424641362,1781026245000,-587.60148306,0.00014865,2]
[424641406,1781026245000,-173.21291421,0.00014956,2]
[424641355,1781026245000,-150.0,0.0001484,2]
[424641361,1781026245000,-173.21291421,0.00014865,2]
[424641365,1781026245000,-150.0,0.00014872,2]
[424641367,1781026245000,-173.21291421,0.0001488,2]
[424641366,1781026245000,-150.0,0.00014877,2]
[424641377,1781026245000,-13763.11503494,0.000149,2]
[424641368,1781026245000,-587.60148306,0.0001488,2]
[424641363,1781026245000,-150.0,0.00014866,2]
[424641378,1781026245000,-3400.0,0.000149,5]
[424641371,1781026245000,-173.21291421,0.00014895,2]
[424641369,1781026245000,-150.0,0.00014886,2]
[424641373,1781026245000,-500.0,0.00014899,2]
[424641370,1781026245000,-150.0,0.00014889,2]
[424641372,1781026245000,-587.60148306,0.00014895,2]
[424641376,1781026245000,-10794.88816786,0.000149,2]
[424641375,1781026245000,-3751.0,0.00014899,2]
[424641379,1781026245000,-2000.0,0.000149,2]
[424641374,1781026245000,-500.0,0.00014899,2]
[424641380,1781026245000,-2028.24271203,0.000149,2]
[424641382,1781026245000,-250.0,0.000149,2]
[424641389,1781026245000,-150.0,0.00014905,2]
[424641455,1781026246000,-500.0,0.00014999,2]
[424641458,1781026246000,-500.0,0.00014999,2]
[424641445,1781026246000,-500.0,0.00014999,2]
[424641459,1781026246000,-500.0,0.00014999,2]
[424641457,1781026246000,-500.0,0.00014999,2]
[424641452,1781026246000,-500.0,0.00014999,2]
[424641442,1781026246000,-500.0,0.00014999,2]
[424641450,1781026246000,-500.0,0.00014999,2]
[424641451,1781026246000,-500.0,0.00014999,2]
[424641448,1781026246000,-500.0,0.00014999,2]
[424641447,1781026246000,-500.0,0.00014999,2]
[424641460,1781026246000,-500.0,0.00014999,2]
[424641449,1781026246000,-500.0,0.00014999,2]
[424641462,1781026246000,-500.0,0.00014999,2]
[424641476,1781026246000,-500.0,0.00014999,2]
[424641466,1781026246000,-500.0,0.00014999,2]
[424641463,1781026246000,-500.0,0.00014999,2]
[424641456,1781026246000,-500.0,0.00014999,2]
[424641461,1781026246000,-500.0,0.00014999,2]
[424641465,1781026246000,-500.0,0.00014999,2]
[424641468,1781026246000,-500.0,0.00014999,2]
[424641467,1781026246000,-500.0,0.00014999,2]
[424641478,1781026246000,-500.0,0.00014999,2]
[424641479,1781026246000,-500.0,0.00014999,2]
[424641470,1781026246000,-500.0,0.00014999,2]
[424641471,1781026246000,-500.0,0.00014999,2]
[424641477,1781026246000,-500.0,0.00014999,2]
[424641464,1781026246000,-500.0,0.00014999,2]
[424641454,1781026246000,-500.0,0.00014999,2]
[424641416,1781026246000,-251.96802586,0.00014986,2]
[424641444,1781026246000,-500.0,0.00014999,2]
[424641469,1781026246000,-500.0,0.00014999,2]
[424641417,1781026246000,-281.0532509,0.00014986,2]
[424641419,1781026246000,-179.43010993,0.00014986,2]
[424641429,1781026246000,-282.4304,0.00014997,2]
[424641418,1781026246000,-206.50834213,0.00014986,2]
[424641430,1781026246000,-500.0,0.00014998,2]
[424641428,1781026246000,-4659.23125264,0.0001499,2]
[424641420,1781026246000,-151.56478511,0.00014986,2]
[424641427,1781026246000,-4659.23125264,0.0001499,2]
[424641422,1781026246000,-256.9210278,0.00014986,2]
[424641426,1781026246000,-33127.74394859,0.00014989,2]
[424641424,1781026246000,-185.84207243,0.00014986,2]
[424641421,1781026246000,-154.16136238,0.00014986,2]
[424641446,1781026246000,-500.0,0.00014999,2]
[424641423,1781026246000,-173.21291421,0.00014986,2]
[424641431,1781026246000,-2671.94635063,0.00014999,2]
[424641436,1781026246000,-500.0,0.00014999,2]
[424641441,1781026246000,-500.0,0.00014999,2]
[424641435,1781026246000,-625.74,0.00014999,2]
[424641439,1781026246000,-500.0,0.00014999,2]
[424641432,1781026246000,-500.0,0.00014999,2]
[424641434,1781026246000,-500.0,0.00014999,2]
[424641440,1781026246000,-500.0,0.00014999,2]
[424641433,1781026246000,-500.0,0.00014999,2]
[424641437,1781026246000,-500.0,0.00014999,2]
[424641438,1781026246000,-500.0,0.00014999,2]
[424641443,1781026246000,-500.0,0.00014999,2]
[424641453,1781026246000,-500.0,0.00014999,2]
[424641425,1781026246000,-587.60148306,0.00014986,2]
[424641475,1781026246000,-500.0,0.00014999,2]
[424641474,1781026246000,-500.0,0.00014999,2]
[424641472,1781026246000,-500.0,0.00014999,2]
[424641515,1781026246000,-300.0,0.00015067,2]
[424641508,1781026246000,-151.0,0.00015,2]
[424641514,1781026246000,-151.0,0.00015,2]
[424641512,1781026246000,-151.0,0.00015,2]
[424641513,1781026246000,-151.0,0.00015,2]
[424641518,1781026246000,-616.582569,0.00015068,2]
[424641520,1781026246000,-287.0,0.00015201,2]
[424641519,1781026246000,-616.582569,0.00015068,2]
[424641530,1781026246000,-421.0,0.00015224,2]
[424641521,1781026246000,-289.0,0.00015221,2]
[424641524,1781026246000,-400.0,0.00015224,2]
[424641522,1781026246000,-400.0,0.00015224,2]
[424641523,1781026246000,-400.0,0.00015224,2]
[424641525,1781026246000,-400.0,0.00015224,2]
[424641528,1781026246000,-400.0,0.00015224,2]
[424641527,1781026246000,-400.0,0.00015224,2]
[424641526,1781026246000,-400.0,0.00015224,2]
[424641529,1781026246000,-400.0,0.00015224,2]
[424641531,1781026246000,-300.0,0.00015234,2]
[424641540,1781026246000,-600.0,0.00015235,2]
[424641534,1781026246000,-600.0,0.00015235,2]
[424641536,1781026246000,-600.0,0.00015235,2]
[424641532,1781026246000,-600.0,0.00015235,2]
[424641539,1781026246000,-600.0,0.00015235,2]
[424641535,1781026246000,-600.0,0.00015235,2]
[424641537,1781026246000,-600.0,0.00015235,2]
[424641533,1781026246000,-600.0,0.00015235,2]
[424641516,1781026246000,-616.582569,0.00015068,2]
[424641511,1781026246000,-151.0,0.00015,2]
[424641538,1781026246000,-600.0,0.00015235,2]
[424641506,1781026246000,-151.0,0.00015,2]
[424641510,1781026246000,-151.0,0.00015,2]
[424641473,1781026246000,-500.0,0.00014999,2]
[424641480,1781026246000,-500.0,0.00014999,2]
[424641484,1781026246000,-500.0,0.00014999,2]
[424641486,1781026246000,-500.0,0.00014999,2]
[424641487,1781026246000,-368.39634158,0.00014999,2]
[424641483,1781026246000,-500.0,0.00014999,2]
[424641482,1781026246000,-500.0,0.00014999,2]
[424641491,1781026246000,-3751.0,0.00014999,2]
[424641492,1781026246000,-3751.0,0.00014999,2]
[424641490,1781026246000,-3751.0,0.00014999,2]
[424641485,1781026246000,-500.0,0.00014999,2]
[424641488,1781026246000,-500.0,0.00014999,2]
[424641489,1781026246000,-3751.0,0.00014999,2]
[424641481,1781026246000,-500.0,0.00014999,2]
[424641496,1781026246000,-3751.0,0.00014999,2]
[424641509,1781026246000,-151.0,0.00015,2]
[424641517,1781026246000,-616.582569,0.00015068,2]
[424641505,1781026246000,-13482975.15630108,0.00015,2]
[424641503,1781026246000,-10592388.00922275,0.00015,2]
[424641494,1781026246000,-3751.0,0.00014999,2]
[424641501,1781026246000,-666.0,0.00014999,2]
[424641500,1781026246000,-300.0,0.00014999,2]
[424641499,1781026246000,-666.0,0.00014999,2]
[424641493,1781026246000,-3751.0,0.00014999,2]
[424641498,1781026246000,-300.0,0.00014999,2]
[424641495,1781026246000,-3751.0,0.00014999,2]
[424641497,1781026246000,-3751.03867159,0.00014999,2]
[424641502,1781026246000,-300.0,0.00014999,2]
[424641569,1781026247000,-1235.18214925,0.00016057,2]
[424641595,1781026247000,-151.0,0.00016438,2]
[424641592,1781026247000,-151.0,0.00016438,2]
[424641571,1781026247000,-201.33076395,0.000161,7]
[424641586,1781026247000,-774.886158,0.00016438,2]
[424641591,1781026247000,-2416.224079,0.00016438,2]
[424641568,1781026247000,-457.0,0.00016003,2]
[424641589,1781026247000,-2416.224079,0.00016438,2]
[424641587,1781026247000,-774.886158,0.00016438,2]
[424641577,1781026247000,-185.1356096,0.00016438,2]
[424641572,1781026247000,-4378.76695744,0.0001611,15]
[424641582,1781026247000,-452.0,0.00016438,2]
[424641583,1781026247000,-156.836525,0.00016438,2]
[424641584,1781026247000,-774.886158,0.00016438,2]
[424641598,1781026247000,-151.0,0.00016438,2]
[424641599,1781026247000,-151.0,0.00016438,2]
[424641573,1781026247000,-8281.88,0.00016116,2]
[424641588,1781026247000,-2416.224079,0.00016438,2]
[424641597,1781026247000,-151.0,0.00016438,2]
[424641574,1781026247000,-200.0,0.0001634,2]
[424641596,1781026247000,-151.0,0.00016438,2]
[424641600,1781026247000,-151.0,0.00016438,2]
[424641594,1781026247000,-151.0,0.00016438,2]
[424641578,1781026247000,-1309.2,0.00016438,2]
[424641570,1781026247000,-1798.80895522,0.00016057,2]
[424641585,1781026247000,-774.886158,0.00016438,2]
[424641579,1781026247000,-251.22500368,0.00016438,2]
[424641563,1781026247000,-2275.878506,0.00015807,2]
[424641576,1781026247000,-588.67,0.00016438,2]
[424641581,1781026247000,-151.0,0.00016438,2]
[424641542,1781026247000,-300.0,0.00015299,2]
[424641549,1781026247000,-1874.62385812,0.000154,2]
[424641567,1781026247000,-779.39793254,0.00016,2]
[424641555,1781026247000,-500.0,0.00015646,2]
[424641565,1781026247000,-853.94608,0.000159,2]
[424641543,1781026247000,-1874.62385812,0.000153,2]
[424641547,1781026247000,-11211.0,0.00015394,5]
[424641562,1781026247000,-634.93,0.000158,2]
[424641554,1781026247000,-853.94608,0.000156,2]
[424641552,1781026247000,-1734.62772924,0.00015509,2]
[424641544,1781026247000,-853.94608,0.000153,2]
[424641575,1781026247000,-676.73,0.00016438,2]
[424641556,1781026247000,-632.26,0.00015646,2]
[424641553,1781026247000,-1874.62385812,0.000156,2]
[424641559,1781026247000,-1874.62385812,0.000157,2]
[424641566,1781026247000,-300.0,0.00016,2]
[424641564,1781026247000,-1874.62385812,0.000159,2]
[424641557,1781026247000,-500.0,0.00015646,2]
[424641551,1781026247000,-1191.11104074,0.00015509,2]
[424641548,1781026247000,-8768.0,0.00015394,5]
[424641550,1781026247000,-853.94608,0.000154,2]
[424641545,1781026247000,-1517.64,0.000153,2]
[424641546,1781026247000,-300.0,0.00015309,2]
[424641558,1781026247000,-500.0,0.00015646,2]
[424641561,1781026247000,-419.50355664,0.000158,5]
[424641560,1781026247000,-853.94608,0.000157,2]
[424641603,1781026247000,-6625.54188677,0.000165,2]
[424641541,1781026247000,-274.0,0.00015235,2]
[424641590,1781026247000,-2416.224079,0.00016438,2]
[424641650,1781026247000,-2000.0,0.00017769,2]
[424641637,1781026247000,-379.24222088,0.00017768,2]
[424641653,1781026247000,-151.0,0.00017769,2]
[424641630,1781026247000,-632.26,0.00017768,2]
[424641648,1781026247000,-33271.7254,0.00017769,2]
[424641643,1781026247000,-500.0,0.00017768,2]
[424641644,1781026247000,-500.0,0.00017768,2]
[424641647,1781026247000,-10307.5733,0.00017769,2]
[424641652,1781026247000,-151.0,0.00017769,2]
[424641638,1781026247000,-500.0,0.00017768,2]
[424641639,1781026247000,-500.0,0.00017768,2]
[424641634,1781026247000,-500.0,0.00017768,2]
[424641640,1781026247000,-500.0,0.00017768,2]
[424641636,1781026247000,-500.0,0.00017768,2]
[424641629,1781026247000,-632.26,0.00017768,2]
[424641632,1781026247000,-632.26,0.00017768,2]
[424641635,1781026247000,-500.0,0.00017768,2]
[424641631,1781026247000,-632.26,0.00017768,2]
[424641645,1781026247000,-500.0,0.00017768,2]
[424641651,1781026247000,-151.0,0.00017769,2]
[424641641,1781026247000,-500.0,0.00017768,2]
[424641646,1781026247000,-500.0,0.00017768,2]
[424641649,1781026247000,-2579.8488,0.00017769,2]
[424641655,1781026247000,-774.886158,0.00017769,2]
[424641656,1781026247000,-774.886158,0.00017769,2]
[424641602,1781026247000,-151.0,0.00016438,2]
[424641642,1781026247000,-500.0,0.00017768,2]
[424641633,1781026247000,-500.0,0.00017768,2]
[424641654,1781026247000,-774.886158,0.00017769,2]
[424641620,1781026247000,-2005.9555727,0.00017701,2]
[424641619,1781026247000,-1377.42282658,0.00017701,2]
[424641593,1781026247000,-151.0,0.00016438,2]
[424641580,1781026247000,-445.0,0.00016438,2]
[424641605,1781026247000,-1280.88388877,0.00016605,2]
[424641628,1781026247000,-632.26,0.00017768,2]
[424641615,1781026247000,-954.75,0.00017424,2]
[424641609,1781026247000,-840.46,0.00016767,2]
[424641624,1781026247000,-500.0,0.00017768,2]
[424641626,1781026247000,-455.29895921,0.00017768,2]
[424641604,1781026247000,-1000.0,0.000165,2]
[424641610,1781026247000,-985.22,0.00016931,2]
[424641613,1781026247000,-1328.27659266,0.00017153,2]
[424641618,1781026247000,-403.0,0.000177,5]
[424641601,1781026247000,-151.0,0.00016438,2]
[424641622,1781026247000,-151.0,0.00017766,2]
[424641623,1781026247000,-500.0,0.00017768,2]
[424641607,1781026247000,-150.0,0.00016684,3]
[424641617,1781026247000,-794.38804377,0.000177,2]
[424641627,1781026247000,-632.26,0.00017768,2]
[424641611,1781026247000,-565.54,0.00016932,2]
[424641616,1781026247000,-500.0,0.0001757,2]
[424641612,1781026247000,-1162.24423848,0.00017,2]
[424641614,1781026247000,-1934.38338736,0.00017153,2]
[424641606,1781026247000,-1865.36488656,0.00016605,2]
[424641625,1781026247000,-500.0,0.00017768,2]
[424641621,1781026247000,-2000.0,0.00017733,7]
[424641608,1781026247000,-168.37,0.00016712,2]
[424641690,1781026248000,-151.0,0.00018249,2]
[424641691,1781026248000,-209.40437684,0.00018249,2]
[424641680,1781026248000,-151.0,0.00018249,2]
[424641671,1781026248000,-350.0,0.00018,2]
[424641674,1781026248000,-1804.87473419,0.000181,2]
[424641681,1781026248000,-154.6875,0.00018249,2]
[424641696,1781026248000,-200.0,0.00018249,2]
[424641708,1781026248000,-152.0,0.00018249,2]
[424641677,1781026248000,-8968.41078889,0.000182,2]
[424641676,1781026248000,-3373.96218949,0.000182,2]
[424641693,1781026248000,-1428.38747117,0.00018249,2]
[424641705,1781026248000,-151.0,0.00018249,2]
[424641664,1781026248000,-1241.45556877,0.0001789,2]
[424641665,1781026248000,-4949.4401,0.000179,2]
[424641667,1781026248000,-500.0,0.000179,6]
[424641669,1781026248000,-3373.96218949,0.00018,2]
[424641687,1781026248000,-174.61919141,0.00018249,2]
[424641697,1781026248000,-151.0,0.00018249,2]
[424641706,1781026248000,-4853.74383408,0.00018249,2]
[424641695,1781026248000,-578.20924308,0.00018249,2]
[424641661,1781026248000,-2416.224079,0.00017769,2]
[424641692,1781026248000,-151.0,0.00018249,2]
[424641683,1781026248000,-693.39197629,0.00018249,2]
[424641685,1781026248000,-209.40437684,0.00018249,2]
[424641703,1781026248000,-2080.17592889,0.00018249,2]
[424641678,1781026248000,-634.93,0.000182,2]
[424641657,1781026248000,-774.886158,0.00017769,2]
[424641658,1781026248000,-2416.224079,0.00017769,2]
[424641659,1781026248000,-2416.224079,0.00017769,2]
[424641660,1781026248000,-2416.224079,0.00017769,2]
[424641679,1781026248000,-151.0,0.00018249,2]
[424641707,1781026248000,-151.0,0.00018249,2]
[424641663,1781026248000,-151.0,0.00017769,2]
[424641668,1781026248000,-166.05435717,0.00018,2]
[424641682,1781026248000,-151.0,0.00018249,2]
[424641689,1781026248000,-151.0,0.00018249,2]
[424641704,1781026248000,-152.0,0.00018249,2]
[424641666,1781026248000,-3793.0,0.000179,6]
[424641675,1781026248000,-166.05435717,0.000182,2]
[424641686,1781026248000,-151.0,0.00018249,2]
[424641699,1781026248000,-152.0,0.00018249,2]
[424641672,1781026248000,-103164.66602279,0.00018,2]
[424641684,1781026248000,-151.0,0.00018249,2]
[424641688,1781026248000,-693.39197629,0.00018249,2]
[424641694,1781026248000,-151.0,0.00018249,2]
[424641701,1781026248000,-151.0,0.00018249,2]
[424641662,1781026248000,-151.0,0.00017769,2]
[424641698,1781026248000,-151.0,0.00018249,2]
[424641700,1781026248000,-151.0,0.00018249,2]
[424641702,1781026248000,-151.0,0.00018249,2]
[424641736,1781026248000,-151.0,0.00018249,2]
[424641740,1781026248000,-151.0,0.00018249,2]
[424641742,1781026248000,-151.0,0.00018249,2]
[424641750,1781026248000,-151.0,0.00018249,2]
[424641733,1781026248000,-500.0,0.00018249,2]
[424641745,1781026248000,-151.0,0.00018249,2]
[424641735,1781026248000,-151.0,0.00018249,2]
[424641751,1781026248000,-500.0,0.00018249,2]
[424641734,1781026248000,-151.0,0.00018249,2]
[424641738,1781026248000,-500.0,0.00018249,2]
[424641726,1781026248000,-151.0,0.00018249,2]
[424641753,1781026248000,-151.0,0.00018249,2]
[424641752,1781026248000,-151.0,0.00018249,2]
[424641741,1781026248000,-151.0,0.00018249,2]
[424641739,1781026248000,-152.0,0.00018249,2]
[424641743,1781026248000,-500.0,0.00018249,2]
[424641746,1781026248000,-151.0,0.00018249,2]
[424641749,1781026248000,-152.0,0.00018249,2]
[424641748,1781026248000,-151.0,0.00018249,2]
[424641747,1781026248000,-500.0,0.00018249,2]
[424641670,1781026248000,-8968.41078889,0.00018,2]
[424641744,1781026248000,-152.0,0.00018249,2]
[424641737,1781026248000,-151.0,0.00018249,2]
[424641720,1781026248000,-151.0,0.00018249,2]
[424641754,1781026248000,-500.0,0.00018249,2]
[424641721,1781026248000,-151.0,0.00018249,2]
[424641709,1781026248000,-209.40437684,0.00018249,2]
[424641673,1781026248000,-1209.48142739,0.00018,2]
[424641724,1781026248000,-151.0,0.00018249,2]
[424641717,1781026248000,-209.40437684,0.00018249,2]
[424641710,1781026248000,-151.0,0.00018249,2]
[424641713,1781026248000,-9552.16786547,0.00018249,2]
[424641715,1781026248000,-151.0,0.00018249,2]
[424641714,1781026248000,-152.0,0.00018249,2]
[424641725,1781026248000,-151.0,0.00018249,2]
[424641730,1781026248000,-151.0,0.00018249,2]
[424641711,1781026248000,-151.0,0.00018249,2]
[424641729,1781026248000,-151.0,0.00018249,2]
[424641732,1781026248000,-152.0,0.00018249,2]
[424641716,1781026248000,-151.0,0.00018249,2]
[424641723,1781026248000,-500.0,0.00018249,2]
[424641719,1781026248000,-721.12765534,0.00018249,2]
[424641712,1781026248000,-151.0,0.00018249,2]
[424641727,1781026248000,-152.0,0.00018249,2]
[424641718,1781026248000,-151.0,0.00018249,2]
[424641731,1781026248000,-151.0,0.00018249,2]
[424641728,1781026248000,-500.0,0.00018249,2]
[424641722,1781026248000,-152.0,0.00018249,2]
[424641786,1781026249000,-3373.96218949,0.000187,2]
[424641800,1781026249000,-9905.59807649,0.00018797,2]
[424641803,1781026249000,-217.15233878,0.00018797,2]
[424641802,1781026249000,-151.0,0.00018797,2]
[424641794,1781026249000,-181.08010149,0.00018797,2]
[424641792,1781026249000,-154.6875,0.00018797,2]
[424641810,1781026249000,-5245.26960294,0.00019,2]
[424641806,1781026249000,-3373.96218949,0.000189,2]
[424641795,1781026249000,-719.04747942,0.00018797,2]
[424641791,1781026249000,-184.51613916,0.00018755,2]
[424641809,1781026249000,-159.0,0.00019,2]
[424641805,1781026249000,-151.0,0.00018799,2]
[424641807,1781026249000,-8968.41078889,0.000189,2]
[424641804,1781026249000,-997.16350561,0.00018799,2]
[424641811,1781026249000,-1831.35481406,0.00019,2]
[424641796,1781026249000,-217.15233878,0.00018797,2]
[424641798,1781026249000,-299.0,0.00018797,2]
[424641822,1781026249000,-186.921122,0.00019178,2]
[424641819,1781026249000,-186.921122,0.00019178,2]
[424641813,1781026249000,-8968.41078889,0.000191,2]
[424641831,1781026249000,-223.960333,0.00019178,2]
[424641816,1781026249000,-186.921122,0.00019178,2]
[424641790,1781026249000,-151.0,0.00018744,2]
[424641824,1781026249000,-223.960333,0.00019178,2]
[424641799,1781026249000,-2157.14243826,0.00018797,2]
[424641793,1781026249000,-217.15233878,0.00018797,2]
[424641789,1781026249000,-961.58486558,0.00018744,2]
[424641788,1781026249000,-821.40861723,0.0001874,2]
[424641808,1781026249000,-2000.0,0.0001896,7]
[424641801,1781026249000,-151.0,0.00018797,2]
[424641812,1781026249000,-3373.96218949,0.000191,2]
[424641797,1781026249000,-1481.2378076,0.00018797,2]
[424641775,1781026249000,-151.0,0.00018469,2]
[424641760,1781026249000,-500.0,0.00018249,2]
[424641827,1781026249000,-223.960333,0.00019178,2]
[424641756,1781026249000,-152.0,0.00018249,2]
[424641755,1781026249000,-151.0,0.00018249,2]
[424641757,1781026249000,-151.0,0.00018249,2]
[424641758,1781026249000,-500.0,0.00018249,2]
[424641759,1781026249000,-151.0,0.00018249,2]
[424641764,1781026249000,-151.0,0.00018304,2]
[424641773,1781026249000,-151.0,0.00018414,2]
[424641778,1781026249000,-831.51979762,0.00018524,2]
[424641768,1781026249000,-166.05435717,0.000184,2]
[424641761,1781026249000,-500.0,0.00018249,2]
[424641776,1781026249000,-3373.96218949,0.000185,2]
[424641772,1781026249000,-773.24136889,0.00018414,2]
[424641781,1781026249000,-151.0,0.00018579,2]
[424641787,1781026249000,-8968.41078889,0.000187,2]
[424641766,1781026249000,-1320.75332669,0.00018359,2]
[424641779,1781026249000,-151.0,0.00018524,2]
[424641770,1781026249000,-8968.41078889,0.000184,2]
[424641763,1781026249000,-5033.33235594,0.00018304,2]
[424641783,1781026249000,-151.0,0.00018634,2]
[424641784,1781026249000,-927.27566594,0.00018689,2]
[424641762,1781026249000,-719.04747942,0.00018304,2]
[424641777,1781026249000,-8968.41078889,0.000185,2]
[424641780,1781026249000,-862.28603014,0.00018579,2]
[424641767,1781026249000,-151.0,0.00018359,2]
[424641782,1781026249000,-894.19061325,0.00018634,2]
[424641771,1781026249000,-1309.2,0.0001841,2]
[424641785,1781026249000,-151.0,0.00018689,2]
[424641765,1781026249000,-745.65223615,0.00018359,2]
[424641769,1781026249000,-3373.96218949,0.000184,2]
[424641774,1781026249000,-801.85129954,0.00018469,2]
[424641815,1781026249000,-186.2,0.00019178,2]
[424641864,1781026249000,-194.72792766,0.00019893,2]
[424641828,1781026249000,-223.960333,0.00019178,2]
[424641865,1781026249000,-773.24136889,0.00019893,2]
[424641853,1781026249000,-3373.96218949,0.000195,2]
[424641855,1781026249000,-52486.79364518,0.000195,2]
[424641843,1781026249000,-225.18697532,0.00019345,2]
[424641845,1781026249000,-745.65223615,0.00019345,2]
[424641866,1781026249000,-1592.87721992,0.00019893,2]
[424641850,1781026249000,-151.0,0.00019345,2]
[424641841,1781026249000,-8968.41078889,0.000193,2]
[424641861,1781026249000,-634.93,0.000198,2]
[424641868,1781026249000,-2319.72410669,0.00019893,2]
[424641877,1781026249000,-504713.30331671,0.0001995,15]
[424641873,1781026249000,-10000.0,0.000199,2]
[424641876,1781026249000,-210.40552976,0.000199,2]
[424641878,1781026249000,-513.19414253,0.00019999,2]
[424641846,1781026249000,-225.18697532,0.00019345,2]
[424641874,1781026249000,-3865.64286019,0.000199,3]
[424641869,1781026249000,-10652.17309792,0.00019893,2]
[424641867,1781026249000,-233.5188934,0.00019893,2]
[424641872,1781026249000,-233.5188934,0.00019893,2]
[424641875,1781026249000,-210.40552976,0.000199,2]
[424641879,1781026249000,-159.0,0.0002,2]
[424641880,1781026249000,-384.0,0.0002,2]
[424641870,1781026249000,-151.0,0.00019893,2]
[424641881,1781026249000,-652.08853766,0.0002,2]
[424641885,1781026249000,-656.0,0.0002,2]
[424641887,1781026249000,-1822.0,0.0002,2]
[424641882,1781026249000,-1138.0,0.0002,2]
[424641883,1781026249000,-2748.0,0.0002,2]
[424641886,1781026249000,-493.0,0.0002,2]
[424641823,1781026249000,-186.921122,0.00019178,2]
[424641871,1781026249000,-151.0,0.00019893,2]
[424641857,1781026249000,-200.0,0.00019548,2]
[424641884,1781026249000,-390.411394,0.0002,2]
[424641847,1781026249000,-1536.04360648,0.00019345,2]
[424641835,1781026249000,-428.871314,0.00019178,2]
[424641817,1781026249000,-186.921122,0.00019178,2]
[424641820,1781026249000,-186.921122,0.00019178,2]
[424641837,1781026249000,-428.871314,0.00019178,2]
[424641825,1781026249000,-223.960333,0.00019178,2]
[424641818,1781026249000,-186.921122,0.00019178,2]
[424641826,1781026249000,-223.960333,0.00019178,2]
[424641814,1781026249000,-186.2,0.00019178,2]
[424641862,1781026249000,-154.6875,0.00019893,2]
[424641833,1781026249000,-428.871314,0.00019178,2]
[424641832,1781026249000,-428.871314,0.00019178,2]
[424641838,1781026249000,-428.871314,0.00019178,2]
[424641834,1781026249000,-428.871314,0.00019178,2]
[424641836,1781026249000,-428.871314,0.00019178,2]
[424641829,1781026249000,-223.960333,0.00019178,2]
[424641830,1781026249000,-223.960333,0.00019178,2]
[424641860,1781026249000,-8968.41078889,0.000197,2]
[424641821,1781026249000,-186.921122,0.00019178,2]
[424641852,1781026249000,-225.18697532,0.00019345,2]
[424641842,1781026249000,-154.6875,0.00019345,2]
[424641854,1781026249000,-8968.41078889,0.000195,2]
[424641863,1781026249000,-233.5188934,0.00019893,2]
[424641859,1781026249000,-3373.96218949,0.000197,2]
[424641848,1781026249000,-2236.95670847,0.00019345,2]